[Event "Late-Titled-Tuesday-Blitz-March-26-2024"]
[Site "Chess.com"]
[Date "2024.03.26"]
[Round "5"]
[White "a_kandil"]
[Black "GelmanAlexander"]
[Result "0-1"]
[WhiteElo "2508"]
[BlackElo "2676"]
[TimeControl "180+1"]
[EndTime "14:57:50 PDT"]
[Termination "GelmanAlexander won by resignation"]

1. e4 {[%clk 0:02:59.1]} 1... c5 {[%clk 0:02:58.1]} 2. Nf3 {[%clk 0:02:59.3]}
2... e6 {[%clk 0:02:57]} 3. d4 {[%clk 0:02:56.3]} 3... cxd4 {[%clk 0:02:57.2]}
4. Nxd4 {[%clk 0:02:57.2]} 4... a6 {[%clk 0:02:57.3]} 5. Be3 {[%clk 0:02:40.6]}
5... d6 {[%clk 0:02:56.9]} 6. Nc3 {[%clk 0:02:40]} 6... Nf6 {[%clk 0:02:56.4]}
7. f3 {[%clk 0:02:40.4]} 7... h5 {[%clk 0:02:56.2]} 8. Qd2 {[%clk 0:02:40.3]}
8... Nbd7 {[%clk 0:02:55.9]} 9. O-O-O {[%clk 0:02:37.6]} 9... b5 {[%clk
0:02:55.9]} 10. Kb1 {[%clk 0:02:21.8]} 10... Bb7 {[%clk 0:02:56.2]} 11. Bd3
{[%clk 0:02:04.1]} 11... Rc8 {[%clk 0:02:55.8]} 12. Rhe1 {[%clk 0:02:01.1]}
12... Be7 {[%clk 0:02:54.9]} 13. h4 {[%clk 0:01:55.1]} 13... b4 {[%clk
0:02:42.8]} 14. Nce2 {[%clk 0:01:55]} 14... d5 {[%clk 0:02:35.4]} 15. exd5
{[%clk 0:01:35]} 15... Nxd5 {[%clk 0:02:35.4]} 16. Bg5 {[%clk 0:01:34.5]} 16...
O-O {[%clk 0:02:29.5]} 17. Nf4 {[%clk 0:01:31]} 17... Bxg5 {[%clk 0:02:17.9]}
18. hxg5 {[%clk 0:01:28.2]} 18... Qxg5 {[%clk 0:02:16.7]} 19. Nxh5 {[%clk
0:01:08]} 19... Qxd2 {[%clk 0:01:58.4]} 20. Rxd2 {[%clk 0:01:08.9]} 20... Nc5
{[%clk 0:01:52.5]} 21. Bf1 {[%clk 0:00:44.9]} 21... Rfd8 {[%clk 0:01:51.7]} 22.
Ng3 {[%clk 0:00:44.8]} 22... a5 {[%clk 0:01:44]} 23. Red1 {[%clk 0:00:44.7]}
23... a4 {[%clk 0:01:43.1]} 24. Nb5 {[%clk 0:00:41.5]} 24... a3 {[%clk
0:01:42.5]} 25. Ne4 {[%clk 0:00:40.5]} 25... Na4 {[%clk 0:01:17.6]} 26. Ned6
{[%clk 0:00:38.6]} 26... Rb8 {[%clk 0:01:14.9]} 27. Bd3 {[%clk 0:00:17.7]} 27...
Bc6 {[%clk 0:01:03.6]} 28. Rh1 {[%clk 0:00:14.8]} 28... axb2 {[%clk 0:00:55]}
29. g4 {[%clk 0:00:15]} 29... Bxb5 {[%clk 0:00:42.3]} 30. Nxb5 {[%clk
0:00:15.3]} 30... Rxb5 {[%clk 0:00:36.8]} 31. c4 {[%clk 0:00:10.1]} 31... Ndc3+
{[%clk 0:00:26.8]} 32. Kc2 {[%clk 0:00:10.2]} 32... Re5 {[%clk 0:00:24.8]} 33.
Bh7+ {[%clk 0:00:10.1]} 33... Kf8 {[%clk 0:00:23.7]} 34. Rxd8+ {[%clk
0:00:10.3]} 34... Ke7 {[%clk 0:00:24.4]} 35. Rd2 {[%clk 0:00:10.5]} 35... g6
{[%clk 0:00:21]} 36. Kb3 {[%clk 0:00:06.8]} 36... Nc5+ {[%clk 0:00:18.1]} 37.
Kc2 {[%clk 0:00:06.9]} 37... Re3 {[%clk 0:00:15.1]} 38. Bxg6 {[%clk 0:00:05.8]}
38... b1=Q+ {[%clk 0:00:13.8]} 39. Rxb1 {[%clk 0:00:05.2]} 39... Nxb1 {[%clk
0:00:14.7]} 40. Bd3 {[%clk 0:00:03.5]} 40... Nxd2 {[%clk 0:00:14.2]} 41. Kxd2
{[%clk 0:00:03.2]} 41... Rxd3+ {[%clk 0:00:14.5]} 0-1

[Event "Late-Titled-Tuesday-Blitz-March-26-2024"]
[Site "Chess.com"]
[Date "2024.03.26"]
[Round "5"]
[White "crazycheesecake"]
[Black "The_Straightforward_Rook"]
[Result "0-1"]
[WhiteElo "2087"]
[BlackElo "2386"]
[TimeControl "180+1"]
[EndTime "14:57:51 PDT"]
[Termination "The_Straightforward_Rook won on time"]

1. Nf3 {[%clk 0:03:00.9]} 1... d5 {[%clk 0:02:54]} 2. c4 {[%clk 0:03:00.7]} 2...
c6 {[%clk 0:02:53.2]} 3. g3 {[%clk 0:03:00.6]} 3... Nf6 {[%clk 0:02:47.1]} 4.
Bg2 {[%clk 0:02:59.6]} 4... Bg4 {[%clk 0:02:46.3]} 5. cxd5 {[%clk 0:02:50]} 5...
cxd5 {[%clk 0:02:45.3]} 6. Qb3 {[%clk 0:02:49.6]} 6... Qb6 {[%clk 0:02:40.1]} 7.
Qxb6 {[%clk 0:02:28]} 7... axb6 {[%clk 0:02:41]} 8. Nc3 {[%clk 0:02:27.7]} 8...
e6 {[%clk 0:02:38]} 9. O-O {[%clk 0:02:21.4]} 9... Be7 {[%clk 0:02:32.7]} 10. d3
{[%clk 0:02:21.2]} 10... O-O {[%clk 0:02:31.5]} 11. Be3 {[%clk 0:02:20.3]} 11...
Bc5 {[%clk 0:02:28.6]} 12. Bf4 {[%clk 0:02:04.7]} 12... Nc6 {[%clk 0:02:22]} 13.
a3 {[%clk 0:01:50.3]} 13... Bxf3 {[%clk 0:02:21.2]} 14. Bxf3 {[%clk 0:01:47.1]}
14... Nd4 {[%clk 0:02:22.1]} 15. Bg2 {[%clk 0:01:44.3]} 15... b5 {[%clk
0:02:14.1]} 16. b4 {[%clk 0:00:56.6]} 16... Bb6 {[%clk 0:01:55.7]} 17. Ra2
{[%clk 0:00:35.8]} 17... Rfc8 {[%clk 0:01:53.5]} 18. Rc1 {[%clk 0:00:28]} 18...
Nd7 {[%clk 0:01:33.3]} 19. Kf1 {[%clk 0:00:19]} 19... Nb3 {[%clk 0:01:16.6]} 20.
Rcc2 {[%clk 0:00:18.8]} 20... Bd4 {[%clk 0:01:12.1]} 21. Nxb5 {[%clk 0:00:18.2]}
21... Bf6 {[%clk 0:01:03.4]} 22. Nc7 {[%clk 0:00:15.2]} 22... Ra7 {[%clk
0:00:56.2]} 23. Nxd5 {[%clk 0:00:12.2]} 23... Rxc2 {[%clk 0:00:51.1]} 24. Nxf6+
{[%clk 0:00:12.3]} 24... gxf6 {[%clk 0:00:50.3]} 25. Rxc2 {[%clk 0:00:13.2]}
25... Rxa3 {[%clk 0:00:49.4]} 26. Bxb7 {[%clk 0:00:10.3]} 26... Ra1+ {[%clk
0:00:48.1]} 27. Kg2 {[%clk 0:00:10.2]} 27... Nd4 {[%clk 0:00:43.4]} 28. Rc8+
{[%clk 0:00:10.2]} 28... Kg7 {[%clk 0:00:43.1]} 29. e3 {[%clk 0:00:07.7]} 29...
Ne2 {[%clk 0:00:37.8]} 30. Bd6 {[%clk 0:00:07.9]} 30... Ne5 {[%clk 0:00:35.8]}
31. Bxe5 {[%clk 0:00:07.2]} 31... fxe5 {[%clk 0:00:34.7]} 32. Kf3 {[%clk
0:00:07.6]} 32... Nc1 {[%clk 0:00:28.1]} 33. Be4 {[%clk 0:00:05]} 33... f5
{[%clk 0:00:25.7]} 34. Rc7+ {[%clk 0:00:04.6]} 34... Kf6 {[%clk 0:00:25.1]} 35.
Bc6 {[%clk 0:00:04.3]} 35... Nxd3 {[%clk 0:00:23.7]} 36. b5 {[%clk 0:00:03.6]}
36... Ra2 {[%clk 0:00:23.1]} 37. e4 {[%clk 0:00:01.4]} 37... Rxf2+ {[%clk
0:00:11.9]} 38. Ke3 {[%clk 0:00:01.9]} 38... fxe4 {[%clk 0:00:09.8]} 39. Bxe4
{[%clk 0:00:02.4]} 39... Rxh2 {[%clk 0:00:07.8]} 40. Kxd3 {[%clk 0:00:02.2]}
40... Rh3 {[%clk 0:00:07.7]} 41. Rxh7 {[%clk 0:00:02.2]} 41... Rxg3+ {[%clk
0:00:06.9]} 42. Kc4 {[%clk 0:00:02.6]} 42... Re3 {[%clk 0:00:07]} 43. Bd3 {[%clk
0:00:02.2]} 43... e4 {[%clk 0:00:06.6]} 44. Bf1 {[%clk 0:00:02.4]} 44... Re1
{[%clk 0:00:06.8]} 45. Rh1 {[%clk 0:00:01.2]} 45... e3 {[%clk 0:00:06.1]} 0-1

[Event "Late-Titled-Tuesday-Blitz-March-26-2024"]
[Site "Chess.com"]
[Date "2024.03.26"]
[Round "5"]
[White "RandomNoob04"]
[Black "secretsuperstar7"]
[Result "1-0"]
[WhiteElo "2672"]
[BlackElo "2503"]
[TimeControl "180+1"]
[EndTime "14:57:54 PDT"]
[Termination "RandomNoob04 won on time"]

1. e4 {[%clk 0:03:00.9]} 1... c5 {[%clk 0:02:49.9]} 2. d4 {[%clk 0:03:01.3]}
2... cxd4 {[%clk 0:02:49.5]} 3. c3 {[%clk 0:03:01.8]} 3... d5 {[%clk 0:02:45.3]}
4. exd5 {[%clk 0:03:01.6]} 4... Nf6 {[%clk 0:02:40.9]} 5. Bb5+ {[%clk
0:02:56.7]} 5... Bd7 {[%clk 0:02:38.1]} 6. Bxd7+ {[%clk 0:02:56.6]} 6... Nbxd7
{[%clk 0:02:36.3]} 7. Qxd4 {[%clk 0:02:55.9]} 7... g6 {[%clk 0:02:33.8]} 8. c4
{[%clk 0:02:40]} 8... Bg7 {[%clk 0:02:28]} 9. Nc3 {[%clk 0:02:40.6]} 9... O-O
{[%clk 0:02:26.4]} 10. Nf3 {[%clk 0:02:30]} 10... Nb6 {[%clk 0:02:19.9]} 11. Qd3
{[%clk 0:02:25.9]} 11... Rc8 {[%clk 0:02:16.9]} 12. b3 {[%clk 0:02:24.2]} 12...
Nfxd5 {[%clk 0:02:11.8]} 13. Nxd5 {[%clk 0:02:10.9]} 13... Bxa1 {[%clk
0:02:05.1]} 14. O-O {[%clk 0:02:10.4]} 14... Nxd5 {[%clk 0:02:03]} 15. cxd5
{[%clk 0:02:11.3]} 15... Bg7 {[%clk 0:02:02.1]} 16. Qe4 {[%clk 0:01:39.9]} 16...
Re8 {[%clk 0:01:47.9]} 17. h4 {[%clk 0:01:16.5]} 17... Rc5 {[%clk 0:01:39]} 18.
Rd1 {[%clk 0:01:14.6]} 18... Qc8 {[%clk 0:01:30.6]} 19. Be3 {[%clk 0:01:12.4]}
19... Rc3 {[%clk 0:01:27.7]} 20. h5 {[%clk 0:00:57.4]} 20... Qf5 {[%clk
0:01:07.7]} 21. Qa4 {[%clk 0:00:57.2]} 21... Rd8 {[%clk 0:00:59.2]} 22. h6
{[%clk 0:00:53.2]} 22... Bf8 {[%clk 0:00:56]} 23. Qa5 {[%clk 0:00:45.8]} 23...
Rcc8 {[%clk 0:00:48.2]} 24. Bxa7 {[%clk 0:00:45.5]} 24... e6 {[%clk 0:00:46.4]}
25. Qb6 {[%clk 0:00:19.6]} 25... Rxd5 {[%clk 0:00:34.8]} 26. Re1 {[%clk
0:00:20.1]} 26... Bxh6 {[%clk 0:00:29.6]} 27. Qxb7 {[%clk 0:00:19]} 27... Rcd8
{[%clk 0:00:29.7]} 28. Bb6 {[%clk 0:00:14.4]} 28... Rf8 {[%clk 0:00:16.6]} 29.
a4 {[%clk 0:00:10.6]} 29... Bf4 {[%clk 0:00:14.4]} 30. a5 {[%clk 0:00:09.4]}
30... Qc2 {[%clk 0:00:11.5]} 31. a6 {[%clk 0:00:05.4]} 31... Rd1 {[%clk
0:00:08.3]} 32. a7 {[%clk 0:00:04.5]} 32... Rxe1+ {[%clk 0:00:08.1]} 33. Nxe1
{[%clk 0:00:05.4]} 33... Qd1 {[%clk 0:00:08]} 34. Ba5 {[%clk 0:00:05.1]} 34...
Bd2 {[%clk 0:00:03.5]} 35. Bxd2 {[%clk 0:00:04.2]} 35... Qxd2 {[%clk 0:00:03.6]}
36. Nf3 {[%clk 0:00:02.9]} 36... Qc1+ {[%clk 0:00:03.3]} 37. Kh2 {[%clk
0:00:02.8]} 37... Qa1 {[%clk 0:00:03]} 38. b4 {[%clk 0:00:02.9]} 38... Qa4
{[%clk 0:00:01.8]} 39. b5 {[%clk 0:00:02.7]} 39... Qf4+ {[%clk 0:00:01.8]} 40.
Kh1 {[%clk 0:00:02.5]} 40... Qc1+ {[%clk 0:00:01.7]} 41. Kh2 {[%clk 0:00:02.9]}
41... Qf4+ {[%clk 0:00:01.8]} 42. g3 {[%clk 0:00:03.6]} 42... Qa4 {[%clk
0:00:01.3]} 43. b6 {[%clk 0:00:03.3]} 43... Qa2 {[%clk 0:00:01.6]} 44. Kg2
{[%clk 0:00:03.2]} 1-0

[Event "Late-Titled-Tuesday-Blitz-March-26-2024"]
[Site "Chess.com"]
[Date "2024.03.26"]
[Round "5"]
[White "hellokostya"]
[Black "DACF2905"]
[Result "1-0"]
[WhiteElo "2589"]
[BlackElo "2396"]
[TimeControl "180+1"]
[EndTime "14:57:54 PDT"]
[Termination "hellokostya won by resignation"]

1. e4 {[%clk 0:02:56.2]} 1... e5 {[%clk 0:02:54.8]} 2. Nf3 {[%clk 0:02:55.1]}
2... Nc6 {[%clk 0:02:54.4]} 3. Bc4 {[%clk 0:02:55]} 3... Be7 {[%clk 0:02:53.9]}
4. O-O {[%clk 0:02:53.9]} 4... Nf6 {[%clk 0:02:54]} 5. d3 {[%clk 0:02:53.7]}
5... O-O {[%clk 0:02:54]} 6. a4 {[%clk 0:02:53.6]} 6... h6 {[%clk 0:02:53]} 7.
a5 {[%clk 0:02:53.2]} 7... a6 {[%clk 0:02:52.8]} 8. h3 {[%clk 0:02:50.1]} 8...
d5 {[%clk 0:02:52.6]} 9. exd5 {[%clk 0:02:46.8]} 9... Nxd5 {[%clk 0:02:52.8]}
10. Re1 {[%clk 0:02:46.8]} 10... Bf6 {[%clk 0:02:52.1]} 11. Nbd2 {[%clk
0:02:40.2]} 11... g6 {[%clk 0:02:50.7]} 12. Ne4 {[%clk 0:02:33.7]} 12... Bg7
{[%clk 0:02:50.8]} 13. c3 {[%clk 0:02:26.5]} 13... Rb8 {[%clk 0:02:46.4]} 14.
Qb3 {[%clk 0:02:23.2]} 14... Be6 {[%clk 0:02:46.2]} 15. Nc5 {[%clk 0:02:16.9]}
15... Qd6 {[%clk 0:02:27.8]} 16. Nxe6 {[%clk 0:02:09]} 16... fxe6 {[%clk
0:02:27.4]} 17. Nd2 {[%clk 0:01:50]} 17... b5 {[%clk 0:02:08.2]} 18. axb6 {[%clk
0:01:46.7]} 18... Rxb6 {[%clk 0:02:08.2]} 19. Qa2 {[%clk 0:01:38.8]} 19... Nf4
{[%clk 0:02:03.5]} 20. Ne4 {[%clk 0:01:36.4]} 20... Qe7 {[%clk 0:01:57.6]} 21.
Be3 {[%clk 0:01:34.4]} 21... Kh7 {[%clk 0:01:41.7]} 22. Bxb6 {[%clk 0:01:32.7]}
22... cxb6 {[%clk 0:01:42.6]} 23. Qxa6 {[%clk 0:01:29.1]} 23... Qh4 {[%clk
0:01:25.4]} 24. Qxb6 {[%clk 0:01:24.3]} 24... Ne7 {[%clk 0:01:18.8]} 25. Ra7
{[%clk 0:01:16.5]} 25... Nf5 {[%clk 0:01:17.6]} 26. Bxe6 {[%clk 0:01:05.3]}
26... Nxd3 {[%clk 0:00:48.3]} 27. Bxf5 {[%clk 0:00:57.3]} 27... gxf5 {[%clk
0:00:47.8]} 28. Qc7 {[%clk 0:00:50]} 28... Rg8 {[%clk 0:00:45.2]} 29. Qf7 {[%clk
0:00:38.5]} 29... fxe4 {[%clk 0:00:43.4]} 30. Qf5+ {[%clk 0:00:37.9]} 30... Kh8
{[%clk 0:00:42.6]} 31. Rxe4 {[%clk 0:00:36.6]} 31... Qg5 {[%clk 0:00:20.3]} 32.
Qxg5 {[%clk 0:00:32.8]} 32... hxg5 {[%clk 0:00:21.2]} 33. b4 {[%clk 0:00:31.8]}
33... Rc8 {[%clk 0:00:20.2]} 34. b5 {[%clk 0:00:22]} 34... Rxc3 {[%clk
0:00:18.8]} 35. b6 {[%clk 0:00:22.4]} 35... Nc5 {[%clk 0:00:18.7]} 36. Rb4
{[%clk 0:00:19.6]} 36... e4 {[%clk 0:00:17.7]} 37. g3 {[%clk 0:00:09]} 37... e3
{[%clk 0:00:17.2]} 38. fxe3 {[%clk 0:00:08.4]} 38... Rxe3 {[%clk 0:00:17.2]} 39.
Kf2 {[%clk 0:00:08.8]} 39... Rc3 {[%clk 0:00:15.5]} 40. Rb1 {[%clk 0:00:07.9]}
40... Ne4+ {[%clk 0:00:15.2]} 41. Ke2 {[%clk 0:00:07.8]} 41... Bd4 {[%clk
0:00:15.1]} 42. Ra8+ {[%clk 0:00:07.2]} 42... Kg7 {[%clk 0:00:13.5]} 43. b7
{[%clk 0:00:08.1]} 43... Re3+ {[%clk 0:00:12.1]} 44. Kd1 {[%clk 0:00:08.5]}
44... Nc3+ {[%clk 0:00:11.1]} 45. Kc2 {[%clk 0:00:08.7]} 45... Be5 {[%clk
0:00:09.3]} 46. Rb3 {[%clk 0:00:07.5]} 46... Nd5 {[%clk 0:00:08.6]} 47. Rxe3
{[%clk 0:00:06.6]} 47... Nxe3+ {[%clk 0:00:09.5]} 48. Kd3 {[%clk 0:00:07.1]}
48... Nf5 {[%clk 0:00:09]} 49. Ke4 {[%clk 0:00:06.1]} 49... Bxg3 {[%clk
0:00:09.5]} 50. Kxf5 {[%clk 0:00:06.2]} 50... Bf4 {[%clk 0:00:10.1]} 51. b8=Q
{[%clk 0:00:05.2]} 1-0

[Event "Late-Titled-Tuesday-Blitz-March-26-2024"]
[Site "Chess.com"]
[Date "2024.03.26"]
[Round "5"]
[White "Njal28"]
[Black "jstopa4"]
[Result "1-0"]
[WhiteElo "3035"]
[BlackElo "2741"]
[TimeControl "180+1"]
[EndTime "14:57:56 PDT"]
[Termination "Njal28 won by resignation"]

1. d4 {[%clk 0:02:37.1]} 1... Nf6 {[%clk 0:02:59.1]} 2. c4 {[%clk 0:02:37.2]}
2... g6 {[%clk 0:02:59.1]} 3. Nf3 {[%clk 0:02:37.2]} 3... Bg7 {[%clk 0:02:57]}
4. Nc3 {[%clk 0:02:38.1]} 4... d5 {[%clk 0:02:57.2]} 5. Bg5 {[%clk 0:02:38.7]}
5... Ne4 {[%clk 0:02:55.7]} 6. Bh4 {[%clk 0:02:37.5]} 6... Nxc3 {[%clk
0:02:48.9]} 7. bxc3 {[%clk 0:02:38.4]} 7... c5 {[%clk 0:02:05.6]} 8. e3 {[%clk
0:02:36.2]} 8... Nc6 {[%clk 0:01:57.2]} 9. cxd5 {[%clk 0:02:33.2]} 9... Qxd5
{[%clk 0:01:55.2]} 10. Be2 {[%clk 0:02:33.6]} 10... cxd4 {[%clk 0:01:53.1]} 11.
cxd4 {[%clk 0:02:34.5]} 11... O-O {[%clk 0:01:48.8]} 12. O-O {[%clk 0:02:34.2]}
12... b6 {[%clk 0:01:39.3]} 13. Rc1 {[%clk 0:02:33.1]} 13... Bb7 {[%clk
0:01:39]} 14. Bc4 {[%clk 0:02:27.5]} 14... Qd7 {[%clk 0:01:32.3]} 15. Qa4 {[%clk
0:02:21.8]} 15... a6 {[%clk 0:01:18.1]} 16. d5 {[%clk 0:02:18.6]} 16... b5
{[%clk 0:01:15.9]} 17. dxc6 {[%clk 0:01:57.3]} 17... Bxc6 {[%clk 0:01:15.8]} 18.
Qa3 {[%clk 0:01:53.8]} 18... bxc4 {[%clk 0:01:11.4]} 19. Qxe7 {[%clk 0:01:48.5]}
19... Qxe7 {[%clk 0:01:00.3]} 20. Bxe7 {[%clk 0:01:49.4]} 20... Rfe8 {[%clk
0:01:00.5]} 21. Bc5 {[%clk 0:01:28.9]} 21... Bb2 {[%clk 0:00:50]} 22. Rxc4
{[%clk 0:01:20.4]} 22... Bb5 {[%clk 0:00:50.1]} 23. Rc2 {[%clk 0:01:21.3]} 23...
Bxf1 {[%clk 0:00:46.1]} 24. Rxb2 {[%clk 0:01:21.8]} 24... Bc4 {[%clk 0:00:44.9]}
25. h4 {[%clk 0:01:03.1]} 25... Rab8 {[%clk 0:00:44.7]} 26. Rc2 {[%clk
0:01:02.3]} 26... Rb1+ {[%clk 0:00:44.1]} 27. Kh2 {[%clk 0:01:02.1]} 27... Bd5
{[%clk 0:00:44.1]} 28. Bd4 {[%clk 0:00:56.7]} 28... Bxf3 {[%clk 0:00:30.8]} 29.
gxf3 {[%clk 0:00:57.6]} 29... Reb8 {[%clk 0:00:28.3]} 30. Kg3 {[%clk 0:00:52.7]}
30... a5 {[%clk 0:00:23.9]} 31. Rc5 {[%clk 0:00:48.7]} 31... R1b5 {[%clk
0:00:23.3]} 32. Rc7 {[%clk 0:00:47.2]} 32... R5b7 {[%clk 0:00:22.8]} 33. Rc6
{[%clk 0:00:45]} 33... Kf8 {[%clk 0:00:20.6]} 34. h5 {[%clk 0:00:41.5]} 34...
gxh5 {[%clk 0:00:20.2]} 35. Rh6 {[%clk 0:00:42.2]} 35... Rb5 {[%clk 0:00:18.4]}
36. Rxh7 {[%clk 0:00:40.9]} 36... Ke7 {[%clk 0:00:18.5]} 37. Rh6 {[%clk
0:00:40.3]} 37... Rg8+ {[%clk 0:00:17]} 38. Kf4 {[%clk 0:00:40.7]} 38... Rg6
{[%clk 0:00:17.5]} 39. Rh8 {[%clk 0:00:41]} 39... Rd5 {[%clk 0:00:14.1]} 40. Ke4
{[%clk 0:00:40.6]} 40... Rb5 {[%clk 0:00:14.4]} 41. f4 {[%clk 0:00:41.1]} 41...
Re6+ {[%clk 0:00:14.7]} 42. Kf3 {[%clk 0:00:41.1]} 42... Rc6 {[%clk 0:00:15]}
43. Be5 {[%clk 0:00:41]} 43... Rc2 {[%clk 0:00:15]} 44. Rxh5 {[%clk 0:00:40.3]}
44... Rb1 {[%clk 0:00:12.4]} 45. Bd4 {[%clk 0:00:39]} 45... Rxa2 {[%clk
0:00:12.3]} 46. f5 {[%clk 0:00:38.3]} 46... a4 {[%clk 0:00:11.4]} 47. f6+ {[%clk
0:00:38.5]} 47... Ke6 {[%clk 0:00:11.8]} 48. Re5+ {[%clk 0:00:39.2]} 48... Kd6
{[%clk 0:00:12.4]} 49. Re7 {[%clk 0:00:39.7]} 49... Rf1 {[%clk 0:00:12.1]} 50.
e4 {[%clk 0:00:35.9]} 50... a3 {[%clk 0:00:12.5]} 51. Rxf7 {[%clk 0:00:34.7]}
51... Rd2 {[%clk 0:00:12.8]} 52. e5+ {[%clk 0:00:26.4]} 52... Ke6 {[%clk
0:00:12.9]} 53. Re7+ {[%clk 0:00:26.8]} 53... Kd5 {[%clk 0:00:12.7]} 54. f7
{[%clk 0:00:23.3]} 54... Rdxf2+ {[%clk 0:00:08.7]} 55. Bxf2 {[%clk 0:00:23.1]}
55... a2 {[%clk 0:00:09.2]} 56. Ra7 {[%clk 0:00:21]} 56... a1=Q {[%clk
0:00:06.5]} 57. Rxa1 {[%clk 0:00:21.9]} 1-0

[Event "Late-Titled-Tuesday-Blitz-March-26-2024"]
[Site "Chess.com"]
[Date "2024.03.26"]
[Round "5"]
[White "andrzej"]
[Black "titomagno_64"]
[Result "1-0"]
[WhiteElo "2520"]
[BlackElo "2302"]
[TimeControl "180+1"]
[EndTime "14:57:59 PDT"]
[Termination "andrzej won on time"]

1. e4 {[%clk 0:03:00.9]} 1... g6 {[%clk 0:02:58.7]} 2. d4 {[%clk 0:03:00.8]}
2... Nf6 {[%clk 0:02:59.4]} 3. Nc3 {[%clk 0:03:01.4]} 3... d5 {[%clk 0:02:58]}
4. e5 {[%clk 0:03:01.1]} 4... Ne4 {[%clk 0:02:58.3]} 5. Nxe4 {[%clk 0:03:00.5]}
5... dxe4 {[%clk 0:02:59.2]} 6. Bc4 {[%clk 0:03:00.5]} 6... Bg7 {[%clk
0:02:58.9]} 7. c3 {[%clk 0:03:00.3]} 7... O-O {[%clk 0:02:56.7]} 8. Ne2 {[%clk
0:03:00.4]} 8... c5 {[%clk 0:02:57.3]} 9. O-O {[%clk 0:03:00]} 9... Nc6 {[%clk
0:02:54.1]} 10. h3 {[%clk 0:02:58.6]} 10... cxd4 {[%clk 0:02:43.7]} 11. cxd4
{[%clk 0:02:58]} 11... Qa5 {[%clk 0:02:42.2]} 12. Be3 {[%clk 0:02:52.9]} 12...
Bf5 {[%clk 0:02:21.1]} 13. Qb3 {[%clk 0:02:37.3]} 13... Qc7 {[%clk 0:02:07.6]}
14. Rac1 {[%clk 0:02:25]} 14... Qd7 {[%clk 0:01:54.5]} 15. Bb5 {[%clk
0:02:20.9]} 15... Be6 {[%clk 0:01:50.1]} 16. Qa4 {[%clk 0:02:20.5]} 16... Bd5
{[%clk 0:01:46]} 17. Nf4 {[%clk 0:02:20.2]} 17... Rac8 {[%clk 0:01:43.1]} 18.
Rfd1 {[%clk 0:02:17.3]} 18... a6 {[%clk 0:01:36.5]} 19. Nxd5 {[%clk 0:02:10]}
19... Qxd5 {[%clk 0:01:25.8]} 20. Bc4 {[%clk 0:02:09.8]} 20... Qd7 {[%clk
0:01:21.1]} 21. e6 {[%clk 0:02:00.2]} 21... fxe6 {[%clk 0:01:14.4]} 22. d5
{[%clk 0:01:59.3]} 22... Ne5 {[%clk 0:00:58.2]} 23. Qxd7 {[%clk 0:01:59]} 23...
Nxd7 {[%clk 0:00:59.1]} 24. dxe6 {[%clk 0:01:59.3]} 24... Ne5 {[%clk 0:00:54.8]}
25. Bd5 {[%clk 0:01:58.3]} 25... Rxc1 {[%clk 0:00:54.4]} 26. Rxc1 {[%clk
0:01:56.6]} 26... Nd3 {[%clk 0:00:55.3]} 27. Rc7 {[%clk 0:01:54]} 27... Nxb2
{[%clk 0:00:41.5]} 28. Rxe7 {[%clk 0:01:53.2]} 28... b5 {[%clk 0:00:38.5]} 29.
Rxg7+ {[%clk 0:01:51.1]} 29... Kxg7 {[%clk 0:00:35.5]} 30. Bd4+ {[%clk
0:01:51.6]} 30... Kh6 {[%clk 0:00:35]} 31. Bxb2 {[%clk 0:01:51.8]} 31... Re8
{[%clk 0:00:29]} 32. h4 {[%clk 0:01:48]} 32... a5 {[%clk 0:00:27.6]} 33. Bf6
{[%clk 0:01:47.1]} 33... g5 {[%clk 0:00:25.9]} 34. hxg5+ {[%clk 0:01:46.5]}
34... Kg6 {[%clk 0:00:26.8]} 35. e7 {[%clk 0:01:45.4]} 35... Rc8 {[%clk
0:00:24.7]} 36. Bxe4+ {[%clk 0:01:42.8]} 36... Kf7 {[%clk 0:00:24.5]} 37. Bxh7
{[%clk 0:01:41.6]} 37... b4 {[%clk 0:00:21]} 38. g6+ {[%clk 0:01:40.2]} 38...
Kxf6 {[%clk 0:00:18.5]} 39. f4 {[%clk 0:00:56.9]} 39... Re8 {[%clk 0:00:18.4]}
40. g4 {[%clk 0:00:53]} 40... Rxe7 {[%clk 0:00:17.4]} 41. g5+ {[%clk 0:00:49.8]}
41... Kg7 {[%clk 0:00:17.6]} 42. f5 {[%clk 0:00:50.3]} 42... Re1+ {[%clk
0:00:08.8]} 43. Kf2 {[%clk 0:00:50.2]} 43... Ra1 {[%clk 0:00:09.7]} 44. f6+
{[%clk 0:00:50.3]} 44... Kh8 {[%clk 0:00:04.8]} 45. Ke3 {[%clk 0:00:18.3]} 45...
Rxa2 {[%clk 0:00:03.9]} 46. Kd4 {[%clk 0:00:18.7]} 46... Rd2+ {[%clk 0:00:03]}
47. Ke5 {[%clk 0:00:16.9]} 47... Rf2 {[%clk 0:00:03.1]} 48. Ke6 {[%clk
0:00:12.1]} 48... b3 {[%clk 0:00:02.5]} 49. Kf7 {[%clk 0:00:11.2]} 1-0